[Event "Queens Festival Europe 2022"]
[Site "Tornelo"]
[Date "2022.06.19"]
[Round "3.1"]
[White "Khalilova, Khadija"]
[Black "Omeri, Eklea"]
[Result "1/2-1/2"]
[ECO "B18"]
[WhiteElo "1777"]
[BlackElo "1525"]
[Annotator "NA RC"]
[PlyCount "112"]
[EventDate "2022.06.19"]
[EventType "swiss"]
[EventCountry "NET"]
[SourceTitle "playchess.com"]
[Source "ChessBase"]
[SourceQuality "1"]
[TimeControl "180+2"]

1. e4 {[%emt 0:00:02]} c6 {[%emt 0:00:05]} 2. d4 {[%emt 0:00:03]} d5 {[%emt 0:00:01]} 3. Nd2 {[%emt 0:00:02]} dxe4 {[%emt 0:00:02]} 4. Nxe4 {[%emt 0:00:03]} Bf5 {[%emt 0:00:03]} 5. Ng3 {[%emt 0:00:02]} Bg6 {[%emt 0:00:02]} 6. Nf3 {[%emt 0:00:02]} Nd7 {[%emt 0:00:02]} 7. Bf4 {[%emt 0:00:03]} Ngf6 {[%emt 0:00:03]} 8. Bc4 {[%emt 0:00:02]} e6 {[%emt 0:00:02]} 9. O-O {[%emt 0:00:02]} Be7 {[%emt 0:00:04]} 10. Re1 {[%emt 0:00:03]} O-O {[%emt 0:00:02]} 11. h3 {[%emt 0:00:05]} h6 {[%emt 0:00:02]} 12. c3 {[%emt 0:00:02]} Nb6 {[%emt 0:00:03]} 13. Bb3 {[%emt 0:00:06]} Nbd5 {[%emt 0:00:01]} 14. Be5 {[%emt 0:00:03]} Nd7 {[%emt 0:00:19]} 15. Qd2 {[%emt 0:00:17]} Nxe5 {[%emt 0:00:04]} 16. Nxe5 {[%emt 0:00:02]} Bh7 {[%emt 0:00:03]} 17. a3 {[%emt 0:00:08]} Bg5 {[%emt 0:00:05]} 18. Qd1 {[%emt 0:00:10]} Bf6 {[%emt 0:00:08]} 19. Qf3 {[%emt 0:00:15]} Bxe5 {[%emt 0:00:06]} 20. dxe5 {[%emt 0:00:09]} Qb6 {[%emt 0:00:09]} 21. c4 {[%emt 0:00:04]} Ne7 {[%emt 0:00:04]} 22. Rad1 {[%emt 0:00:07]} Rad8 {[%emt 0:00:15]} 23. Rd6 {[%emt 0:00:28]} Nc8 {[%emt 0:00:09]} 24. Rxd8 {[%emt 0:00:12]} Rxd8 {[%emt 0:00:02]} 25. Ne4 {[%emt 0:00:15]} Bxe4 {[%emt 0:00:06]} 26. Rxe4 {[%emt 0:00:02]} Ne7 {[%emt 0:00:07]} 27. Rg4 {[%emt 0:00:10]} Rd4 {[%emt 0:00:10]} 28. Qc3 {[%emt 0:00:18]} Nf5 {[%emt 0:00:16]} 29. Bc2 {[%emt 0:00:04]} Rxg4 {[%emt 0:00:04]} 30. hxg4 {[%emt 0:00:03]} Nd4 {[%emt 0:00:11]} 31. Bb1 {[%emt 0:00:04]} c5 {[%emt 0:00:06]} 32. Kh2 {[%emt 0:00:11]} Qc7 {[%emt 0:00:05]} 33. f4 {[%emt 0:00:04]} Qc6 {[%emt 0:00:09]} 34. b4 {[%emt 0:00:03]} b6 {[%emt 0:00:03]} 35. Qd3 {[%emt 0:00:05]} g6 {[%emt 0:00:06]} 36. Qh3 {[%emt 0:00:05]} Kg7 {[%emt 0:00:03]} 37. g5 {[%emt 0:00:04]} h5 {[%emt 0:00:06]} 38. Qd3 {[%emt 0:00:05]} Qc7 {[%emt 0:00:13]} 39. Kg3 {[%emt 0:00:03]} Nf5+ {[%emt 0:00:03]} 40. Kf2 {[%emt 0:00:02]} cxb4 {[%emt 0:00:06]} 41. axb4 {[%emt 0:00:02]} h4 {[%emt 0:00:05]} 42. Qc3 {[%emt 0:00:03]} Ne7 {[%emt 0:00:11]} 43. Be4 {[%emt 0:00:02]} a6 {[%emt 0:00:03]} 44. Qd3 {[%emt 0:00:03]} Nf5 {[%emt 0:00:03]} 45. Bxf5 {[%emt 0:00:02]} exf5 {[%emt 0:00:02]} 46. Kf3 {[%emt 0:00:03]} a5 {[%emt 0:00:05]} 47. bxa5 {[%emt 0:00:04]} bxa5 {[%emt 0:00:03]} 48. Qd4 {[%emt 0:00:02]} Kh7 {[%emt 0:00:04]} 49. Kf2 {[%emt 0:00:02]} a4 {[%emt 0:00:03]} 50. c5 {[%emt 0:00:02]} a3 {[%emt 0:00:02]} 51. Qc4 {[%emt 0:00:01]} a2 {[%emt 0:00:02]} 52. Qxa2 {[%emt 0:00:02]} Qxc5+ {[%emt 0:00:02]} 53. Kf3 {[%emt 0:00:01]} Qc6+ {[%emt 0:00:02]} 54. Kf2 {[%emt 0:00:02]} Qc5+ {[%emt 0:00:02]} 55. Kf3 {[%emt 0:00:02]} Qc6+ {[%emt 0:00:01]} 56. Kf2 {[%emt 0:00:01]} Qc5+ {[%emt 0:00:02]} 1/2-1/2

[Event "Queens Festival Europe 2022"]
[Site "Tornelo"]
[Date "2022.06.19"]
[Round "3.1"]
[White "Vujovic, Vera"]
[Black "Ismayilova, Khanim"]
[Result "1-0"]
[ECO "B33"]
[WhiteElo "1353"]
[BlackElo "1647"]
[Annotator "NA RC"]
[PlyCount "75"]
[EventDate "2022.06.19"]
[EventType "swiss"]
[EventCountry "NET"]
[SourceTitle "playchess.com"]
[Source "ChessBase"]
[SourceQuality "1"]
[TimeControl "180+2"]

1. e4 {[%emt 0:00:02]} c5 {[%emt 0:00:04]} 2. Nf3 {[%emt 0:00:02]} Nc6 {[%emt 0:00:01]} 3. d4 {[%emt 0:00:01]} cxd4 {[%emt 0:00:01]} 4. Nxd4 {[%emt 0:00:02]} Nf6 {[%emt 0:00:01]} 5. Nc3 {[%emt 0:00:02]} e5 {[%emt 0:00:01]} 6. Ndb5 {[%emt 0:00:02]} d6 {[%emt 0:00:01]} 7. Bg5 {[%emt 0:00:02]} a6 {[%emt 0:00:01]} 8. Na3 {[%emt 0:00:01]} b5 {[%emt 0:00:00]} 9. Nd5 {[%emt 0:00:01]} Be7 {[%emt 0:00:01]} 10. Bxf6 {[%emt 0:00:03]} Bxf6 {[%emt 0:00:00]} 11. c4 {[%emt 0:00:01]} b4 {[%emt 0:00:03]} 12. Nc2 {[%emt 0:00:02]} a5 {[%emt 0:00:01]} 13. b3 {[%emt 0:00:01]} O-O {[%emt 0:00:03]} 14. Nce3 {[%emt 0:00:03]} Nd4 {[%emt 0:00:03]} 15. Nc2 {[%emt 0:00:06]} Nc6 {[%emt 0:00:08]} 16. a3 {[%emt 0:00:02]} bxa3 {[%emt 0:00:09]} 17. Nxa3 {[%emt 0:00:02]} Be6 {[%emt 0:00:06]} 18. Nc2 {[%emt 0:00:06]} Bxd5 {[%emt 0:00:06]} 19. Qxd5 {[%emt 0:00:06]} Qc7 {[%emt 0:00:02]} 20. Be2 {[%emt 0:00:09]} Rfb8 {[%emt 0:00:02]} 21. Qd3 {[%emt 0:00:56]} Ra7 {[%emt 0:00:19]} 22. Na3 {[%emt 0:00:06]} Nb4 {[%emt 0:00:30]} 23. Qd2 {[%emt 0:00:11]} Rab7 {[%emt 0:00:04]} 24. Nb5 {[%emt 0:00:02]} Qc6 {[%emt 0:00:11]} 25. Rxa5 {[%emt 0:00:17]} Na6 {[%emt 0:00:14]} 26. Qxd6 {[%emt 0:00:08]} Qxd6 {[%emt 0:00:31]} 27. Nxd6 {[%emt 0:00:03]} Rb6 {[%emt 0:00:02]} 28. Nb5 {[%emt 0:00:17]} Nc5 {[%emt 0:00:06]} 29. b4 {[%emt 0:00:06]} Nxe4 {[%emt 0:00:04]} 30. c5 {[%emt 0:00:02]} R6b7 {[%emt 0:00:04]} 31. c6 {[%emt 0:00:02]} Rb6 {[%emt 0:00:05]} 32. c7 {[%emt 0:00:01]} Rc8 {[%emt 0:00:06]} 33. Bg4 {[%emt 0:00:02]} Rbb8 {[%emt 0:00:48]} 34. cxb8=Q {[%emt 0:00:14]} Rxb8 {[%emt 0:00:02]} 35. Bf3 {[%emt 0:00:03]} Ng5 {[%emt 0:00:02]} 36. O-O {[%emt 0:00:04]} e4 {[%emt 0:00:03]} 37. Be2 {[%emt 0:00:01]} Ne6 {[%emt 0:00:07]} 38. Nd6 {[%emt 0:00:10]} 1-0

[Event "Queens Festival Europe 2022"]
[Site "Tornelo"]
[Date "2022.06.19"]
[Round "3.2"]
[White "Amrayeva, Aytan"]
[Black "Machlik, Monika"]
[Result "1/2-1/2"]
[ECO "A45"]
[WhiteElo "2143"]
[BlackElo "2134"]
[Annotator "NA RC"]
[PlyCount "109"]
[EventDate "2022.06.19"]
[EventType "swiss"]
[EventCountry "NET"]
[SourceTitle "playchess.com"]
[Source "ChessBase"]
[SourceQuality "1"]
[TimeControl "180+2"]

1. d4 {[%emt 0:00:02]} Nf6 {[%emt 0:00:06]} 2. c3 {[%emt 0:00:03]} e6 {[%emt 0:00:02]} 3. Bg5 {[%emt 0:00:04]} c5 {[%emt 0:00:05]} 4. e3 {[%emt 0:00:02]} b6 {[%emt 0:00:02]} 5. Nf3 {[%emt 0:00:02]} Bb7 {[%emt 0:00:01]} 6. Bd3 {[%emt 0:00:04]} Be7 {[%emt 0:00:11]} 7. O-O {[%emt 0:00:02]} d5 {[%emt 0:00:04]} 8. Ne5 {[%emt 0:00:06]} O-O {[%emt 0:00:09]} 9. f4 {[%emt 0:00:02]} Ne8 {[%emt 0:00:20]} 10. Bxe7 {[%emt 0:00:14]} Qxe7 {[%emt 0:00:02]} 11. Nd2 {[%emt 0:00:04]} Ba6 {[%emt 0:00:10]} 12. Ndf3 {[%emt 0:00:18]} Bxd3 {[%emt 0:00:04]} 13. Nxd3 {[%emt 0:00:05]} Nc6 {[%emt 0:00:04]} 14. Qe2 {[%emt 0:00:01]} Nd6 {[%emt 0:00:02]} 15. Nfe5 {[%emt 0:00:02]} Rac8 {[%emt 0:00:20]} 16. Rf3 {[%emt 0:00:06]} f6 {[%emt 0:00:07]} 17. Nxc6 {[%emt 0:00:14]} Rxc6 {[%emt 0:00:01]} 18. Rh3 {[%emt 0:00:01]} Ne4 {[%emt 0:00:16]} 19. Qh5 {[%emt 0:00:16]} g6 {[%emt 0:00:02]} 20. Qe2 {[%emt 0:00:02]} Nd6 {[%emt 0:00:09]} 21. Rf1 {[%emt 0:00:04]} Nf7 {[%emt 0:00:14]} 22. Rhf3 {[%emt 0:00:13]} Nd6 {[%emt 0:00:04]} 23. Rh3 {[%emt 0:00:25]} Rc7 {[%emt 0:00:15]} 24. g4 {[%emt 0:00:07]} Nf7 {[%emt 0:00:06]} 25. Qf2 {[%emt 0:00:18]} Nd6 {[%emt 0:00:03]} 26. Qe2 {[%emt 0:00:07]} Ne4 {[%emt 0:00:09]} 27. Nf2 {[%emt 0:00:05]} Nxf2 {[%emt 0:00:05]} 28. Qxf2 {[%emt 0:00:04]} Rf7 {[%emt 0:00:03]} 29. Kh1 {[%emt 0:00:06]} e5 {[%emt 0:00:16]} 30. f5 {[%emt 0:00:19]} g5 {[%emt 0:00:03]} 31. Rg3 {[%emt 0:00:06]} Qe8 {[%emt 0:00:02]} 32. Qd2 {[%emt 0:00:04]} exd4 {[%emt 0:00:06]} 33. exd4 {[%emt 0:00:02]} c4 {[%emt 0:00:01]} 34. Re3 {[%emt 0:00:02]} Rfe7 {[%emt 0:00:02]} 35. Rfe1 {[%emt 0:00:02]} Kf7 {[%emt 0:00:03]} 36. Qe2 {[%emt 0:00:01]} Rxe3 {[%emt 0:00:02]} 37. Qxe3 {[%emt 0:00:02]} Re7 {[%emt 0:00:03]} 38. Qxe7+ {[%emt 0:00:01]} Qxe7 {[%emt 0:00:01]} 39. Rxe7+ {[%emt 0:00:03]} Kxe7 {[%emt 0:00:01]} 40. Kg2 {[%emt 0:00:02]} Kd6 {[%emt 0:00:02]} 41. Kf3 {[%emt 0:00:02]} b5 {[%emt 0:00:02]} 42. Kg3 {[%emt 0:00:05]} Kc6 {[%emt 0:00:05]} 43. h4 {[%emt 0:00:02]} h6 {[%emt 0:00:02]} 44. hxg5 {[%emt 0:00:03]} hxg5 {[%emt 0:00:02]} 45. Kf3 {[%emt 0:00:01]} Kd6 {[%emt 0:00:06]} 46. Ke3 {[%emt 0:00:01]} Kc6 {[%emt 0:00:02]} 47. Kd2 {[%emt 0:00:02]} a5 {[%emt 0:00:04]} 48. Kc2 {[%emt 0:00:02]} a4 {[%emt 0:00:02]} 49. a3 {[%emt 0:00:03]} Kd6 {[%emt 0:00:03]} 50. Kd2 {[%emt 0:00:01]} Kc6 {[%emt 0:00:01]} 51. Ke3 {[%emt 0:00:02]} Kd6 {[%emt 0:00:02]} 52. Kf3 {[%emt 0:00:01]} Kc6 {[%emt 0:00:01]} 53. Ke3 {[%emt 0:00:01]} Kd6 {[%emt 0:00:01]} 54. Kf3 {[%emt 0:00:02]} Kc6 {[%emt 0:00:02]} 55. Ke3 {[%emt 0:00:01]} 1/2-1/2

[Event "Queens Festival Europe 2022"]
[Site "Tornelo"]
[Date "2022.06.19"]
[Round "3.2"]
[White "Shuqja, Klean"]
[Black "Vujcic, Milena"]
[Result "0-1"]
[ECO "C77"]
[WhiteElo "1839"]
[BlackElo "1987"]
[Annotator "NA RC"]
[PlyCount "68"]
[EventDate "2022.06.19"]
[EventType "swiss"]
[EventCountry "NET"]
[SourceTitle "playchess.com"]
[Source "ChessBase"]
[SourceQuality "1"]
[TimeControl "180+2"]

1. e4 {[%emt 0:00:02]} e5 {[%emt 0:00:04]} 2. Nf3 {[%emt 0:00:02]} Nc6 {[%emt 0:00:02]} 3. Bb5 {[%emt 0:00:01]} a6 {[%emt 0:00:01]} 4. Ba4 {[%emt 0:00:02]} Nf6 {[%emt 0:00:02]} 5. d3 {[%emt 0:00:02]} d6 {[%emt 0:00:02]} 6. O-O {[%emt 0:00:01]} g6 {[%emt 0:00:02]} 7. c3 {[%emt 0:00:03]} Bg7 {[%emt 0:00:02]} 8. Nbd2 {[%emt 0:00:08]} O-O {[%emt 0:00:02]} 9. Re1 {[%emt 0:00:02]} Nd7 {[%emt 0:00:02]} 10. Nf1 {[%emt 0:00:07]} Nc5 {[%emt 0:00:02]} 11. Bc2 {[%emt 0:00:04]} Ne6 {[%emt 0:00:02]} 12. Ng3 {[%emt 0:00:41]} Qf6 {[%emt 0:00:25]} 13. h3 {[%emt 0:00:17]} h5 {[%emt 0:00:19]} 14. Nh2 {[%emt 0:00:28]} Nf4 {[%emt 0:00:07]} 15. Qf3 {[%emt 0:00:09]} Be6 {[%emt 0:00:50]} 16. Ne2 {[%emt 0:00:08]} Nxe2+ {[%emt 0:00:09]} 17. Rxe2 {[%emt 0:00:04]} Qh4 {[%emt 0:00:17]} 18. Bb3 {[%emt 0:00:31]} Bxb3 {[%emt 0:00:04]} 19. axb3 {[%emt 0:00:01]} Ne7 {[%emt 0:00:05]} 20. Qe3 {[%emt 0:00:13]} f5 {[%emt 0:00:05]} 21. Qg5 {[%emt 0:00:05]} Qxg5 {[%emt 0:00:27]} 22. Bxg5 {[%emt 0:00:00]} Nc6 {[%emt 0:00:02]} 23. exf5 {[%emt 0:00:16]} gxf5 {[%emt 0:00:04]} 24. Bd2 {[%emt 0:00:03]} d5 {[%emt 0:00:09]} 25. Nf3 {[%emt 0:00:12]} e4 {[%emt 0:00:02]} 26. dxe4 {[%emt 0:00:01]} fxe4 {[%emt 0:00:01]} 27. Ng5 {[%emt 0:00:03]} Rae8 {[%emt 0:00:03]} 28. Be3 {[%emt 0:00:05]} Ne5 {[%emt 0:00:04]} 29. Bd4 {[%emt 0:00:06]} Rf5 {[%emt 0:00:03]} 30. h4 {[%emt 0:00:03]} Ng4 {[%emt 0:00:15]} 31. Bxg7 {[%emt 0:00:01]} Kxg7 {[%emt 0:00:02]} 32. f3 {[%emt 0:00:03]} Nf6 {[%emt 0:00:04]} 33. fxe4 {[%emt 0:00:02]} dxe4 {[%emt 0:00:01]} 34. Rae1 {[%emt 0:00:02]} Rfe5 {[%emt 0:00:02]} 0-1

[Event "Queens Festival Europe 2022"]
[Site "Tornelo"]
[Date "2022.06.19"]
[Round "3.2"]
[White "Lampard, Alice"]
[Black "Rybackova, Lucie"]
[Result "1-0"]
[ECO "D95"]
[WhiteElo "1756"]
[BlackElo "1696"]
[Annotator "NA RC"]
[PlyCount "39"]
[EventDate "2022.06.19"]
[EventType "swiss"]
[EventCountry "NET"]
[SourceTitle "playchess.com"]
[Source "ChessBase"]
[SourceQuality "1"]
[TimeControl "180+2"]

1. d4 {[%emt 0:00:02]} Nf6 {[%emt 0:00:05]} 2. c4 {[%emt 0:00:02]} g6 {[%emt 0:00:02]} 3. Nc3 {[%emt 0:00:01]} d5 {[%emt 0:00:01]} 4. Nf3 {[%emt 0:00:06]} Bg7 {[%emt 0:00:03]} 5. Qb3 {[%emt 0:00:02]} c6 {[%emt 0:00:47]} 6. e3 {[%emt 0:00:08]} O-O {[%emt 0:00:03]} 7. Bd2 {[%emt 0:00:01]} Nbd7 {[%emt 0:00:15]} 8. cxd5 {[%emt 0:00:05]} cxd5 {[%emt 0:00:03]} 9. Nxd5 {[%emt 0:00:26]} e6 {[%emt 0:00:36]} 10. Nxf6+ {[%emt 0:00:08]} Nxf6 {[%emt 0:00:02]} 11. Bd3 {[%emt 0:00:04]} a6 {[%emt 0:00:04]} 12. O-O {[%emt 0:00:05]} b5 {[%emt 0:00:02]} 13. a4 {[%emt 0:00:08]} bxa4 {[%emt 0:00:12]} 14. Rxa4 {[%emt 0:00:04]} Nd5 {[%emt 0:00:14]} 15. Rfa1 {[%emt 0:00:16]} Qd6 {[%emt 0:00:05]} 16. e4 {[%emt 0:00:17]} Nb6 {[%emt 0:00:02]} 17. Bb4 {[%emt 0:00:10]} Qc6 {[%emt 0:00:05]} 18. Bxf8 {[%emt 0:00:12]} Nxa4 {[%emt 0:00:08]} 19. Bxg7 {[%emt 0:00:05]} Nxb2 {[%emt 0:00:09]} 20. Qxb2 {[%emt 0:00:06]} 1-0

[Event "Queens Festival Europe 2022"]
[Site "Tornelo"]
[Date "2022.06.19"]
[Round "3.2"]
[White "Bruntse, Caroline Lindegaard"]
[Black "Trivella, Maria"]
[Result "0-1"]
[ECO "E81"]
[WhiteElo "1503"]
[BlackElo "1269"]
[Annotator "NA RC"]
[PlyCount "62"]
[EventDate "2022.06.19"]
[EventType "swiss"]
[EventCountry "NET"]
[SourceTitle "playchess.com"]
[Source "ChessBase"]
[SourceQuality "1"]
[TimeControl "180+2"]

1. d4 {[%emt 0:00:02]} Nf6 {[%emt 0:00:06]} 2. c4 {[%emt 0:00:05]} d6 {[%emt 0:00:01]} 3. Nc3 {[%emt 0:00:02]} g6 {[%emt 0:00:01]} 4. e4 {[%emt 0:00:04]} Bg7 {[%emt 0:00:02]} 5. f3 {[%emt 0:00:02]} O-O {[%emt 0:00:02]} 6. Be3 {[%emt 0:00:03]} Nbd7 {[%emt 0:00:01]} 7. Qd2 {[%emt 0:00:02]} Re8 {[%emt 0:00:02]} 8. O-O-O {[%emt 0:00:02]} a5 {[%emt 0:00:02]} 9. g4 {[%emt 0:00:06]} c6 {[%emt 0:00:07]} 10. h4 {[%emt 0:00:02]} Nf8 {[%emt 0:00:23]} 11. h5 {[%emt 0:00:12]} e5 {[%emt 0:00:04]} 12. Nge2 {[%emt 0:00:19]} exd4 {[%emt 0:00:03]} 13. Nxd4 {[%emt 0:00:03]} d5 {[%emt 0:00:21]} 14. cxd5 {[%emt 0:00:31]} cxd5 {[%emt 0:00:02]} 15. hxg6 {[%emt 0:00:10]} hxg6 {[%emt 0:00:02]} 16. Bh6 {[%emt 0:00:10]} Ne6 {[%emt 0:00:29]} 17. Nxe6 {[%emt 0:00:12]} fxe6 {[%emt 0:00:00]} 18. Bxg7 {[%emt 0:00:03]} Kxg7 {[%emt 0:00:05]} 19. Qh6+ {[%emt 0:00:04]} Kf7 {[%emt 0:00:06]} 20. g5 {[%emt 0:00:14]} Ng8 {[%emt 0:00:27]} 21. Qh7+ {[%emt 0:00:07]} Kf8 {[%emt 0:00:05]} 22. Qxg6 {[%emt 0:00:05]} Re7 {[%emt 0:00:09]} 23. Rh7 {[%emt 0:00:13]} Qd7 {[%emt 0:00:08]} 24. Rxe7 {[%emt 0:00:10]} Qxe7 {[%emt 0:00:00]} 25. exd5 {[%emt 0:00:08]} Bd7 {[%emt 0:00:15]} 26. dxe6 {[%emt 0:00:11]} Bxe6 {[%emt 0:00:05]} 27. Nd5 {[%emt 0:00:12]} Rc8+ {[%emt 0:00:03]} 28. Kb1 {[%emt 0:00:07]} Qd7 {[%emt 0:00:10]} 29. Qd3 {[%emt 0:00:10]} Bf5 {[%emt 0:00:07]} 30. Nc3 {[%emt 0:00:09]} Bxd3+ {[%emt 0:00:03]} 31. Rxd3 {[%emt 0:00:02]} Qf5 {[%emt 0:00:02]} 0-1

[Event "Queens Festival Europe 2022"]
[Site "Tornelo"]
[Date "2022.06.19"]
[Round "3.3"]
[White "Kordzadze, Nino"]
[Black "Head, Louise"]
[Result "0-1"]
[ECO "D02"]
[WhiteElo "2043"]
[BlackElo "2025"]
[Annotator "NA RC"]
[PlyCount "82"]
[EventDate "2022.06.19"]
[EventType "swiss"]
[EventCountry "NET"]
[SourceTitle "playchess.com"]
[Source "ChessBase"]
[SourceQuality "1"]
[TimeControl "180+2"]

1. g3 {[%emt 0:00:02]} d5 {[%emt 0:00:04]} 2. Bg2 {[%emt 0:00:02]} c6 {[%emt 0:00:02]} 3. Nf3 {[%emt 0:00:01]} Bf5 {[%emt 0:00:02]} 4. O-O {[%emt 0:00:01]} e6 {[%emt 0:00:01]} 5. b3 {[%emt 0:00:01]} h6 {[%emt 0:00:03]} 6. Bb2 {[%emt 0:00:02]} Nf6 {[%emt 0:00:01]} 7. d4 {[%emt 0:00:06]} Nbd7 {[%emt 0:00:01]} 8. Nbd2 {[%emt 0:00:01]} Bd6 {[%emt 0:00:05]} 9. Ne5 {[%emt 0:00:04]} O-O {[%emt 0:00:03]} 10. e3 {[%emt 0:00:07]} a5 {[%emt 0:00:02]} 11. a4 {[%emt 0:00:02]} Rc8 {[%emt 0:00:05]} 12. c4 {[%emt 0:00:22]} Bxe5 {[%emt 0:00:11]} 13. dxe5 {[%emt 0:00:03]} Ng4 {[%emt 0:00:02]} 14. Nf3 {[%emt 0:00:34]} Qc7 {[%emt 0:00:21]} 15. Qd4 {[%emt 0:00:28]} c5 {[%emt 0:00:13]} 16. Qc3 {[%emt 0:00:09]} h5 {[%emt 0:00:23]} 17. cxd5 {[%emt 0:00:07]} exd5 {[%emt 0:00:01]} 18. Rfd1 {[%emt 0:00:04]} Be6 {[%emt 0:00:04]} 19. Ng5 {[%emt 0:00:10]} Rfe8 {[%emt 0:00:24]} 20. Bxd5 {[%emt 0:00:08]} Bxd5 {[%emt 0:00:09]} 21. Rxd5 {[%emt 0:00:16]} Nf8 {[%emt 0:00:07]} 22. Rad1 {[%emt 0:00:08]} Re7 {[%emt 0:00:05]} 23. h3 {[%emt 0:00:11]} Nh6 {[%emt 0:00:03]} 24. Rc1 {[%emt 0:00:07]} b6 {[%emt 0:00:02]} 25. Rcd1 {[%emt 0:00:04]} Ne6 {[%emt 0:00:04]} 26. Ne4 {[%emt 0:00:03]} Rd8 {[%emt 0:00:26]} 27. Nd6 {[%emt 0:00:06]} Rdd7 {[%emt 0:00:10]} 28. Nb5 {[%emt 0:00:04]} Qb7 {[%emt 0:00:03]} 29. Rd6 {[%emt 0:00:05]} Nf5 {[%emt 0:00:03]} 30. Rxd7 {[%emt 0:00:08]} Rxd7 {[%emt 0:00:02]} 31. Qc2 {[%emt 0:00:02]} Ne7 {[%emt 0:00:13]} 32. Rd6 {[%emt 0:00:05]} Nc8 {[%emt 0:00:04]} 33. Rd2 {[%emt 0:00:04]} Qc6 {[%emt 0:00:09]} 34. Qd1 {[%emt 0:00:02]} Rxd2 {[%emt 0:00:02]} 35. Qxd2 {[%emt 0:00:01]} Qe4 {[%emt 0:00:07]} 36. Nc3 {[%emt 0:00:07]} Qc6 {[%emt 0:00:04]} 37. Nb5 {[%emt 0:00:03]} c4 {[%emt 0:00:02]} 38. Qc2 {[%emt 0:00:05]} Qf3 {[%emt 0:00:06]} 39. Qxc4 {[%emt 0:00:02]} Ne7 {[%emt 0:00:02]} 40. Nd4 {[%emt 0:00:02]} Qd1+ {[%emt 0:00:04]} 41. Kg2 {[%emt 0:00:02]} Ng5 {[%emt 0:00:01]} 0-1

[Event "Queens Festival Europe 2022"]
[Site "Tornelo"]
[Date "2022.06.19"]
[Round "3.3"]
[White "Bayona, Karin Silvana"]
[Black "Frundina, Yelyzaveta"]
[Result "1-0"]
[ECO "B92"]
[WhiteElo "1793"]
[BlackElo "1624"]
[Annotator "NA RC"]
[PlyCount "45"]
[EventDate "2022.06.19"]
[EventType "swiss"]
[EventCountry "NET"]
[SourceTitle "playchess.com"]
[Source "ChessBase"]
[SourceQuality "1"]
[TimeControl "180+2"]

1. e4 {[%emt 0:00:02]} c5 {[%emt 0:00:07]} 2. Nf3 {[%emt 0:00:03]} d6 {[%emt 0:00:02]} 3. d4 {[%emt 0:00:02]} cxd4 {[%emt 0:00:03]} 4. Nxd4 {[%emt 0:00:03]} Nf6 {[%emt 0:00:01]} 5. Nc3 {[%emt 0:00:01]} a6 {[%emt 0:00:02]} 6. Be2 {[%emt 0:00:02]} e5 {[%emt 0:00:05]} 7. Nb3 {[%emt 0:00:05]} Be6 {[%emt 0:00:11]} 8. O-O {[%emt 0:00:03]} Be7 {[%emt 0:00:06]} 9. Be3 {[%emt 0:00:03]} O-O {[%emt 0:00:08]} 10. f3 {[%emt 0:00:01]} Nbd7 {[%emt 0:00:09]} 11. Qe1 {[%emt 0:00:16]} b5 {[%emt 0:00:07]} 12. a3 {[%emt 0:00:03]} Rc8 {[%emt 0:00:15]} 13. Qf2 {[%emt 0:00:40]} d5 {[%emt 0:00:13]} 14. exd5 {[%emt 0:00:04]} Nxd5 {[%emt 0:00:22]} 15. Nxd5 {[%emt 0:00:05]} Bxd5 {[%emt 0:00:06]} 16. Bd3 {[%emt 0:00:03]} Bh4 {[%emt 0:00:41]} 17. Qd2 {[%emt 0:00:13]} Qf6 {[%emt 0:00:31]} 18. Bxh7+ {[%emt 0:00:10]} Kxh7 {[%emt 0:00:17]} 19. Qxd5 {[%emt 0:00:02]} Rfd8 {[%emt 0:00:06]} 20. Qe4+ {[%emt 0:00:02]} Qg6 {[%emt 0:00:03]} 21. Qxh4+ {[%emt 0:00:03]} Kg8 {[%emt 0:00:01]} 22. c3 {[%emt 0:00:07]} Rc4 {[%emt 0:00:04]} 23. Qxd8+ {[%emt 0:00:05]} 1-0

[Event "Queens Festival Europe 2022"]
[Site "Tornelo"]
[Date "2022.06.19"]
[Round "3.3"]
[White "Bakhshizada, Asnad"]
[Black "Catabay, Mae Katelyn Rose"]
[Result "1-0"]
[ECO "D85"]
[WhiteElo "1052"]
[BlackElo "1321"]
[Annotator "NA RC"]
[PlyCount "113"]
[EventDate "2022.06.19"]
[EventType "swiss"]
[EventCountry "NET"]
[SourceTitle "playchess.com"]
[Source "ChessBase"]
[SourceQuality "1"]
[TimeControl "180+2"]

1. d4 {[%emt 0:00:02]} Nf6 {[%emt 0:00:05]} 2. c4 {[%emt 0:00:03]} g6 {[%emt 0:00:02]} 3. Nc3 {[%emt 0:00:01]} d5 {[%emt 0:00:01]} 4. cxd5 {[%emt 0:00:03]} Nxd5 {[%emt 0:00:01]} 5. e4 {[%emt 0:00:01]} Nxc3 {[%emt 0:00:02]} 6. bxc3 {[%emt 0:00:02]} Bg7 {[%emt 0:00:01]} 7. Be3 {[%emt 0:00:02]} c5 {[%emt 0:00:02]} 8. Nf3 {[%emt 0:00:04]} Nc6 {[%emt 0:00:03]} 9. Rc1 {[%emt 0:00:11]} cxd4 {[%emt 0:00:03]} 10. cxd4 {[%emt 0:00:03]} Bd7 {[%emt 0:00:05]} 11. Bc4 {[%emt 0:00:07]} O-O {[%emt 0:00:04]} 12. O-O {[%emt 0:00:02]} e6 {[%emt 0:00:03]} 13. d5 {[%emt 0:00:05]} exd5 {[%emt 0:00:05]} 14. Bxd5 {[%emt 0:00:07]} Re8 {[%emt 0:00:12]} 15. Bg5 {[%emt 0:00:07]} Qb6 {[%emt 0:00:06]} 16. Bxf7+ {[%emt 0:00:07]} Kxf7 {[%emt 0:00:08]} 17. Qxd7+ {[%emt 0:00:02]} Kg8 {[%emt 0:00:08]} 18. Qd3 {[%emt 0:00:09]} Qb4 {[%emt 0:00:13]} 19. Rfe1 {[%emt 0:00:09]} Qf8 {[%emt 0:00:12]} 20. Rb1 {[%emt 0:00:08]} Rab8 {[%emt 0:00:03]} 21. Bh4 {[%emt 0:00:04]} Ne5 {[%emt 0:00:04]} 22. Nxe5 {[%emt 0:00:03]} Bxe5 {[%emt 0:00:02]} 23. Bg3 {[%emt 0:00:04]} Qe7 {[%emt 0:00:08]} 24. Bxe5 {[%emt 0:00:03]} Qxe5 {[%emt 0:00:02]} 25. Qd5+ {[%emt 0:00:02]} Qxd5 {[%emt 0:00:01]} 26. exd5 {[%emt 0:00:02]} Rxe1+ {[%emt 0:00:06]} 27. Rxe1 {[%emt 0:00:03]} Rd8 {[%emt 0:00:06]} 28. Rd1 {[%emt 0:00:01]} Kf7 {[%emt 0:00:03]} 29. f3 {[%emt 0:00:02]} Kf6 {[%emt 0:00:01]} 30. Kf2 {[%emt 0:00:03]} Ke5 {[%emt 0:00:03]} 31. Rb1 {[%emt 0:00:03]} b6 {[%emt 0:00:02]} 32. Re1+ {[%emt 0:00:03]} Kd6 {[%emt 0:00:04]} 33. a3 {[%emt 0:00:12]} Rc8 {[%emt 0:00:05]} 34. Re6+ {[%emt 0:00:06]} Kxd5 {[%emt 0:00:02]} 35. Re7 {[%emt 0:00:02]} Rc2+ {[%emt 0:00:02]} 36. Kg3 {[%emt 0:00:04]} h5 {[%emt 0:00:03]} 37. Rxa7 {[%emt 0:00:02]} g5 {[%emt 0:00:03]} 38. h3 {[%emt 0:00:15]} Rc3 {[%emt 0:00:11]} 39. a4 {[%emt 0:00:04]} Kc5 {[%emt 0:00:08]} 40. a5 {[%emt 0:00:05]} b5 {[%emt 0:00:07]} 41. Rc7+ {[%emt 0:00:07]} Kb4 {[%emt 0:00:02]} 42. Rxc3 {[%emt 0:00:03]} Kxc3 {[%emt 0:00:04]} 43. a6 {[%emt 0:00:01]} b4 {[%emt 0:00:01]} 44. a7 {[%emt 0:00:01]} b3 {[%emt 0:00:01]} 45. a8=Q {[%emt 0:00:03]} b2 {[%emt 0:00:01]} 46. Qb8 {[%emt 0:00:16]} Kc2 {[%emt 0:00:03]} 47. Qc7+ {[%emt 0:00:02]} Kd2 {[%emt 0:00:08]} 48. Qb6 {[%emt 0:00:05]} Kc2 {[%emt 0:00:02]} 49. Qc5+ {[%emt 0:00:01]} Kd1 {[%emt 0:00:06]} 50. Qb4 {[%emt 0:00:04]} Kc2 {[%emt 0:00:04]} 51. Qc4+ {[%emt 0:00:02]} Kd1 {[%emt 0:00:05]} 52. Qb3+ {[%emt 0:00:04]} Kc1 {[%emt 0:00:02]} 53. Qc3+ {[%emt 0:00:02]} Kb1 {[%emt 0:00:02]} 54. f4 {[%emt 0:00:04]} gxf4+ {[%emt 0:00:08]} 55. Kxf4 {[%emt 0:00:03]} Ka2 {[%emt 0:00:03]} 56. Qc2 {[%emt 0:00:02]} Ka1 {[%emt 0:00:06]} 57. Kg5 {[%emt 0:00:03]} 1-0